{"text_format":"3","workbook":"xlsx","n_sheets":1,"sheets":["Danh sách Kiểm kê"],"not_rendered":{"defined_names":3},"read":"whole","date_system":"1900"}

{"sheet":"Danh sách Kiểm kê","index":0,"n_rows":28,"n_cols":12,"rows_kept":28,"merged":[[0,2,0,4],[0,5,0,6]]}
[null,null,"Danh sách Kiểm kê",null,null,"Tô sáng các mục để đặt hàng lại?",null,"Có"]
[]
[null,"Các mục được gắn cờ để đặt hàng lại","ID Kiểm kê","Tên","Mô tả","Đơn Giá","Số lượng Còn Hàng","Giá trị Kiểm kê","Ngưỡng Đặt hàng lại","Thời gian Đặt hàng lại tính bằng Ngày","Số lượng được Đặt hàng lại","Không tiếp tục?"]
[null,{"$f":"IFERROR((Danh_sách_Kiểm_kê[[#This Row],[Số lượng Còn Hàng]]<=Danh_sách_Kiểm_kê[[#This Row],[Ngưỡng Đặt hàng lại]])*(Danh_sách_Kiểm_kê[[#This Row],[Không tiếp tục?]]=\"\")*valHighlight,0)","v":1},"IN0001","Mục 1","Mô tả 1",{"v":1122000,"d":"1,122,000.00 ₫"},25,{"$f":"Danh_sách_Kiểm_kê[[#This Row],[Đơn Giá]]*Danh_sách_Kiểm_kê[[#This Row],[Số lượng Còn Hàng]]","v":{"v":28050000,"d":"28,050,000.00 ₫"}},29,13,50,""]
[null,{"$f":"IFERROR((Danh_sách_Kiểm_kê[[#This Row],[Số lượng Còn Hàng]]<=Danh_sách_Kiểm_kê[[#This Row],[Ngưỡng Đặt hàng lại]])*(Danh_sách_Kiểm_kê[[#This Row],[Không tiếp tục?]]=\"\")*valHighlight,0)","v":1},"IN0002","Mục 2","Mô tả 2",{"v":2046000,"d":"2,046,000.00 ₫"},132,{"$f":"Danh_sách_Kiểm_kê[[#This Row],[Đơn Giá]]*Danh_sách_Kiểm_kê[[#This Row],[Số lượng Còn Hàng]]","v":{"v":270072000,"d":"270,072,000.00 ₫"}},231,4,50,""]
[null,{"$f":"IFERROR((Danh_sách_Kiểm_kê[[#This Row],[Số lượng Còn Hàng]]<=Danh_sách_Kiểm_kê[[#This Row],[Ngưỡng Đặt hàng lại]])*(Danh_sách_Kiểm_kê[[#This Row],[Không tiếp tục?]]=\"\")*valHighlight,0)","v":0},"IN0003","Mục 3","Mô tả 3",{"v":1254000,"d":"1,254,000.00 ₫"},151,{"$f":"Danh_sách_Kiểm_kê[[#This Row],[Đơn Giá]]*Danh_sách_Kiểm_kê[[#This Row],[Số lượng Còn Hàng]]","v":{"v":189354000,"d":"189,354,000.00 ₫"}},114,11,150,""]
[null,{"$f":"IFERROR((Danh_sách_Kiểm_kê[[#This Row],[Số lượng Còn Hàng]]<=Danh_sách_Kiểm_kê[[#This Row],[Ngưỡng Đặt hàng lại]])*(Danh_sách_Kiểm_kê[[#This Row],[Không tiếp tục?]]=\"\")*valHighlight,0)","v":0},"IN0004","Mục 4","Mô tả 4",{"v":418000,"d":"418,000.00 ₫"},186,{"$f":"Danh_sách_Kiểm_kê[[#This Row],[Đơn Giá]]*Danh_sách_Kiểm_kê[[#This Row],[Số lượng Còn Hàng]]","v":{"v":77748000,"d":"77,748,000.00 ₫"}},158,6,50,""]
[null,{"$f":"IFERROR((Danh_sách_Kiểm_kê[[#This Row],[Số lượng Còn Hàng]]<=Danh_sách_Kiểm_kê[[#This Row],[Ngưỡng Đặt hàng lại]])*(Danh_sách_Kiểm_kê[[#This Row],[Không tiếp tục?]]=\"\")*valHighlight,0)","v":0},"IN0005","Mục 5","Mô tả 5",{"v":1650000,"d":"1,650,000.00 ₫"},62,{"$f":"Danh_sách_Kiểm_kê[[#This Row],[Đơn Giá]]*Danh_sách_Kiểm_kê[[#This Row],[Số lượng Còn Hàng]]","v":{"v":102300000,"d":"102,300,000.00 ₫"}},39,12,50,""]
[null,{"$f":"IFERROR((Danh_sách_Kiểm_kê[[#This Row],[Số lượng Còn Hàng]]<=Danh_sách_Kiểm_kê[[#This Row],[Ngưỡng Đặt hàng lại]])*(Danh_sách_Kiểm_kê[[#This Row],[Không tiếp tục?]]=\"\")*valHighlight,0)","v":1},"IN0006","Mục 6","Mô tả 6",{"v":242000,"d":"242,000.00 ₫"},5,{"$f":"Danh_sách_Kiểm_kê[[#This Row],[Đơn Giá]]*Danh_sách_Kiểm_kê[[#This Row],[Số lượng Còn Hàng]]","v":{"v":1210000,"d":"1,210,000.00 ₫"}},9,13,150,""]
[null,{"$f":"IFERROR((Danh_sách_Kiểm_kê[[#This Row],[Số lượng Còn Hàng]]<=Danh_sách_Kiểm_kê[[#This Row],[Ngưỡng Đặt hàng lại]])*(Danh_sách_Kiểm_kê[[#This Row],[Không tiếp tục?]]=\"\")*valHighlight,0)","v":0},"IN0007","Mục 7","Mô tả 7",{"v":1232000,"d":"1,232,000.00 ₫"},58,{"$f":"Danh_sách_Kiểm_kê[[#This Row],[Đơn Giá]]*Danh_sách_Kiểm_kê[[#This Row],[Số lượng Còn Hàng]]","v":{"v":71456000,"d":"71,456,000.00 ₫"}},109,7,100,"có"]
[null,{"$f":"IFERROR((Danh_sách_Kiểm_kê[[#This Row],[Số lượng Còn Hàng]]<=Danh_sách_Kiểm_kê[[#This Row],[Ngưỡng Đặt hàng lại]])*(Danh_sách_Kiểm_kê[[#This Row],[Không tiếp tục?]]=\"\")*valHighlight,0)","v":1},"IN0008","Mục 8","Mô tả 8",{"v":836000,"d":"836,000.00 ₫"},101,{"$f":"Danh_sách_Kiểm_kê[[#This Row],[Đơn Giá]]*Danh_sách_Kiểm_kê[[#This Row],[Số lượng Còn Hàng]]","v":{"v":84436000,"d":"84,436,000.00 ₫"}},162,3,100,""]
[null,{"$f":"IFERROR((Danh_sách_Kiểm_kê[[#This Row],[Số lượng Còn Hàng]]<=Danh_sách_Kiểm_kê[[#This Row],[Ngưỡng Đặt hàng lại]])*(Danh_sách_Kiểm_kê[[#This Row],[Không tiếp tục?]]=\"\")*valHighlight,0)","v":0},"IN0009","Mục 9","Mô tả 9",{"v":1298000,"d":"1,298,000.00 ₫"},122,{"$f":"Danh_sách_Kiểm_kê[[#This Row],[Đơn Giá]]*Danh_sách_Kiểm_kê[[#This Row],[Số lượng Còn Hàng]]","v":{"v":158356000,"d":"158,356,000.00 ₫"}},82,3,150,""]
[null,{"$f":"IFERROR((Danh_sách_Kiểm_kê[[#This Row],[Số lượng Còn Hàng]]<=Danh_sách_Kiểm_kê[[#This Row],[Ngưỡng Đặt hàng lại]])*(Danh_sách_Kiểm_kê[[#This Row],[Không tiếp tục?]]=\"\")*valHighlight,0)","v":1},"IN0010","Mục 10","Mô tả 10",{"v":1100000,"d":"1,100,000.00 ₫"},175,{"$f":"Danh_sách_Kiểm_kê[[#This Row],[Đơn Giá]]*Danh_sách_Kiểm_kê[[#This Row],[Số lượng Còn Hàng]]","v":{"v":192500000,"d":"192,500,000.00 ₫"}},283,8,150,""]
[null,{"$f":"IFERROR((Danh_sách_Kiểm_kê[[#This Row],[Số lượng Còn Hàng]]<=Danh_sách_Kiểm_kê[[#This Row],[Ngưỡng Đặt hàng lại]])*(Danh_sách_Kiểm_kê[[#This Row],[Không tiếp tục?]]=\"\")*valHighlight,0)","v":1},"IN0011","Mục 11","Mô tả 11",{"v":1298000,"d":"1,298,000.00 ₫"},176,{"$f":"Danh_sách_Kiểm_kê[[#This Row],[Đơn Giá]]*Danh_sách_Kiểm_kê[[#This Row],[Số lượng Còn Hàng]]","v":{"v":228448000,"d":"228,448,000.00 ₫"}},229,1,100,""]
[null,{"$f":"IFERROR((Danh_sách_Kiểm_kê[[#This Row],[Số lượng Còn Hàng]]<=Danh_sách_Kiểm_kê[[#This Row],[Ngưỡng Đặt hàng lại]])*(Danh_sách_Kiểm_kê[[#This Row],[Không tiếp tục?]]=\"\")*valHighlight,0)","v":1},"IN0012","Mục 12","Mô tả 12",{"v":396000,"d":"396,000.00 ₫"},22,{"$f":"Danh_sách_Kiểm_kê[[#This Row],[Đơn Giá]]*Danh_sách_Kiểm_kê[[#This Row],[Số lượng Còn Hàng]]","v":{"v":8712000,"d":"8,712,000.00 ₫"}},36,12,50,""]
[null,{"$f":"IFERROR((Danh_sách_Kiểm_kê[[#This Row],[Số lượng Còn Hàng]]<=Danh_sách_Kiểm_kê[[#This Row],[Ngưỡng Đặt hàng lại]])*(Danh_sách_Kiểm_kê[[#This Row],[Không tiếp tục?]]=\"\")*valHighlight,0)","v":1},"IN0013","Mục 13","Mô tả 13",{"v":572000,"d":"572,000.00 ₫"},72,{"$f":"Danh_sách_Kiểm_kê[[#This Row],[Đơn Giá]]*Danh_sách_Kiểm_kê[[#This Row],[Số lượng Còn Hàng]]","v":{"v":41184000,"d":"41,184,000.00 ₫"}},102,9,100,""]
[null,{"$f":"IFERROR((Danh_sách_Kiểm_kê[[#This Row],[Số lượng Còn Hàng]]<=Danh_sách_Kiểm_kê[[#This Row],[Ngưỡng Đặt hàng lại]])*(Danh_sách_Kiểm_kê[[#This Row],[Không tiếp tục?]]=\"\")*valHighlight,0)","v":1},"IN0014","Mục 14","Mô tả 14",{"v":924000,"d":"924,000.00 ₫"},62,{"$f":"Danh_sách_Kiểm_kê[[#This Row],[Đơn Giá]]*Danh_sách_Kiểm_kê[[#This Row],[Số lượng Còn Hàng]]","v":{"v":57288000,"d":"57,288,000.00 ₫"}},83,2,100,""]
[null,{"$f":"IFERROR((Danh_sách_Kiểm_kê[[#This Row],[Số lượng Còn Hàng]]<=Danh_sách_Kiểm_kê[[#This Row],[Ngưỡng Đặt hàng lại]])*(Danh_sách_Kiểm_kê[[#This Row],[Không tiếp tục?]]=\"\")*valHighlight,0)","v":0},"IN0015","Mục 15","Mô tả 15",{"v":704000,"d":"704,000.00 ₫"},46,{"$f":"Danh_sách_Kiểm_kê[[#This Row],[Đơn Giá]]*Danh_sách_Kiểm_kê[[#This Row],[Số lượng Còn Hàng]]","v":{"v":32384000,"d":"32,384,000.00 ₫"}},23,15,50,""]
[null,{"$f":"IFERROR((Danh_sách_Kiểm_kê[[#This Row],[Số lượng Còn Hàng]]<=Danh_sách_Kiểm_kê[[#This Row],[Ngưỡng Đặt hàng lại]])*(Danh_sách_Kiểm_kê[[#This Row],[Không tiếp tục?]]=\"\")*valHighlight,0)","v":1},"IN0016","Mục 16","Mô tả 16",{"v":1980000,"d":"1,980,000.00 ₫"},96,{"$f":"Danh_sách_Kiểm_kê[[#This Row],[Đơn Giá]]*Danh_sách_Kiểm_kê[[#This Row],[Số lượng Còn Hàng]]","v":{"v":190080000,"d":"190,080,000.00 ₫"}},180,3,50,""]
[null,{"$f":"IFERROR((Danh_sách_Kiểm_kê[[#This Row],[Số lượng Còn Hàng]]<=Danh_sách_Kiểm_kê[[#This Row],[Ngưỡng Đặt hàng lại]])*(Danh_sách_Kiểm_kê[[#This Row],[Không tiếp tục?]]=\"\")*valHighlight,0)","v":0},"IN0017","Mục 17","Mô tả 17",{"v":2134000,"d":"2,134,000.00 ₫"},57,{"$f":"Danh_sách_Kiểm_kê[[#This Row],[Đơn Giá]]*Danh_sách_Kiểm_kê[[#This Row],[Số lượng Còn Hàng]]","v":{"v":121638000,"d":"121,638,000.00 ₫"}},98,12,50,"Có"]
[null,{"$f":"IFERROR((Danh_sách_Kiểm_kê[[#This Row],[Số lượng Còn Hàng]]<=Danh_sách_Kiểm_kê[[#This Row],[Ngưỡng Đặt hàng lại]])*(Danh_sách_Kiểm_kê[[#This Row],[Không tiếp tục?]]=\"\")*valHighlight,0)","v":1},"IN0018","Mục 18","Mô tả 18",{"v":264000,"d":"264,000.00 ₫"},6,{"$f":"Danh_sách_Kiểm_kê[[#This Row],[Đơn Giá]]*Danh_sách_Kiểm_kê[[#This Row],[Số lượng Còn Hàng]]","v":{"v":1584000,"d":"1,584,000.00 ₫"}},7,13,50,""]
[null,{"$f":"IFERROR((Danh_sách_Kiểm_kê[[#This Row],[Số lượng Còn Hàng]]<=Danh_sách_Kiểm_kê[[#This Row],[Ngưỡng Đặt hàng lại]])*(Danh_sách_Kiểm_kê[[#This Row],[Không tiếp tục?]]=\"\")*valHighlight,0)","v":1},"IN0019","Mục 19","Mô tả 19",{"v":1804000,"d":"1,804,000.00 ₫"},143,{"$f":"Danh_sách_Kiểm_kê[[#This Row],[Đơn Giá]]*Danh_sách_Kiểm_kê[[#This Row],[Số lượng Còn Hàng]]","v":{"v":257972000,"d":"257,972,000.00 ₫"}},164,12,150]
[null,{"$f":"IFERROR((Danh_sách_Kiểm_kê[[#This Row],[Số lượng Còn Hàng]]<=Danh_sách_Kiểm_kê[[#This Row],[Ngưỡng Đặt hàng lại]])*(Danh_sách_Kiểm_kê[[#This Row],[Không tiếp tục?]]=\"\")*valHighlight,0)","v":0},"IN0020","Mục 20","Mô tả 20",{"v":352000,"d":"352,000.00 ₫"},124,{"$f":"Danh_sách_Kiểm_kê[[#This Row],[Đơn Giá]]*Danh_sách_Kiểm_kê[[#This Row],[Số lượng Còn Hàng]]","v":{"v":43648000,"d":"43,648,000.00 ₫"}},113,14,50,""]
[null,{"$f":"IFERROR((Danh_sách_Kiểm_kê[[#This Row],[Số lượng Còn Hàng]]<=Danh_sách_Kiểm_kê[[#This Row],[Ngưỡng Đặt hàng lại]])*(Danh_sách_Kiểm_kê[[#This Row],[Không tiếp tục?]]=\"\")*valHighlight,0)","v":0},"IN0021","Mục 21","Mô tả 21",{"v":418000,"d":"418,000.00 ₫"},112,{"$f":"Danh_sách_Kiểm_kê[[#This Row],[Đơn Giá]]*Danh_sách_Kiểm_kê[[#This Row],[Số lượng Còn Hàng]]","v":{"v":46816000,"d":"46,816,000.00 ₫"}},75,11,50,""]
[null,{"$f":"IFERROR((Danh_sách_Kiểm_kê[[#This Row],[Số lượng Còn Hàng]]<=Danh_sách_Kiểm_kê[[#This Row],[Ngưỡng Đặt hàng lại]])*(Danh_sách_Kiểm_kê[[#This Row],[Không tiếp tục?]]=\"\")*valHighlight,0)","v":0},"IN0022","Mục 22","Mô tả 22",{"v":528000,"d":"528,000.00 ₫"},182,{"$f":"Danh_sách_Kiểm_kê[[#This Row],[Đơn Giá]]*Danh_sách_Kiểm_kê[[#This Row],[Số lượng Còn Hàng]]","v":{"v":96096000,"d":"96,096,000.00 ₫"}},132,15,150,""]
[null,{"$f":"IFERROR((Danh_sách_Kiểm_kê[[#This Row],[Số lượng Còn Hàng]]<=Danh_sách_Kiểm_kê[[#This Row],[Ngưỡng Đặt hàng lại]])*(Danh_sách_Kiểm_kê[[#This Row],[Không tiếp tục?]]=\"\")*valHighlight,0)","v":0},"IN0023","Mục 23","Mô tả 23",{"v":638000,"d":"638,000.00 ₫"},106,{"$f":"Danh_sách_Kiểm_kê[[#This Row],[Đơn Giá]]*Danh_sách_Kiểm_kê[[#This Row],[Số lượng Còn Hàng]]","v":{"v":67628000,"d":"67,628,000.00 ₫"}},142,1,150,"Có"]
[null,{"$f":"IFERROR((Danh_sách_Kiểm_kê[[#This Row],[Số lượng Còn Hàng]]<=Danh_sách_Kiểm_kê[[#This Row],[Ngưỡng Đặt hàng lại]])*(Danh_sách_Kiểm_kê[[#This Row],[Không tiếp tục?]]=\"\")*valHighlight,0)","v":0},"IN0024","Mục 24","Mô tả 24",{"v":1650000,"d":"1,650,000.00 ₫"},173,{"$f":"Danh_sách_Kiểm_kê[[#This Row],[Đơn Giá]]*Danh_sách_Kiểm_kê[[#This Row],[Số lượng Còn Hàng]]","v":{"v":285450000,"d":"285,450,000.00 ₫"}},127,9,100,""]
[null,{"$f":"IFERROR((Danh_sách_Kiểm_kê[[#This Row],[Số lượng Còn Hàng]]<=Danh_sách_Kiểm_kê[[#This Row],[Ngưỡng Đặt hàng lại]])*(Danh_sách_Kiểm_kê[[#This Row],[Không tiếp tục?]]=\"\")*valHighlight,0)","v":0},"IN0025","Mục 25","Mô tả 25",{"v":308000,"d":"308,000.00 ₫"},28,{"$f":"Danh_sách_Kiểm_kê[[#This Row],[Đơn Giá]]*Danh_sách_Kiểm_kê[[#This Row],[Số lượng Còn Hàng]]","v":{"v":8624000,"d":"8,624,000.00 ₫"}},21,8,50,""]